bitfinex-derivatives/quotes_SOLF0:USTF0_20241127
["timestamp","ask_amount","ask_price","bid_price","bid_amount"]
[1732685663692,15.02891493,229.68,229.6,6.45267886]
[1732685663888,6.45267886,229.68,229.6,6.45267886]
[1732685664088,2.1779,229.65,229.6,8.63107886]
[1732685664890,2.1779,229.65,229.61,2.1783]
[1732685665889,2.1779,229.65,229.62,6.45267886]
[1732685670300,2.1778,229.66,229.62,8.63087886]
[1732685674494,2.24,229.69,229.64,6.45267886]
[1732685675002,2.1778,229.67,229.64,6.45267886]
[1732685675313,6.45267886,229.68,229.59,6.45267886]
[1732685676105,2.1779,229.65,229.61,2.1782]
[1732685676306,2.1779,229.65,229.61,8.63087886]
[1732685679010,2.1781,229.64,229.59,2.1784]
[1732685679204,2.24,229.69,229.58,2.5144]
[1732685679205,6.45267886,229.66,229.58,2.5144]
[1732685680211,2.1782,229.63,229.58,4.6929]
[1732685680710,2.1782,229.63,229.59,6.45267886]
[1732685681114,2.1782,229.62,229.59,6.45267886]
[1732685681314,2.1782,229.62,229.59,8.63117886]
[1732685682014,2.1782,229.62,229.59,6.45267886]
[1732685683211,2.1782,229.62,229.59,8.63117886]
[1732685684011,2.24,229.64,229.59,8.63117886]
[1732685684213,2.1781,229.63,229.59,8.63117886]
[1732685686217,2.1781,229.63,229.59,2.1785]
[1732685686417,2.24,229.64,229.58,2.5144]
[1732685686619,6.45267886,229.62,229.51,1.2923]
[1732685686810,6.45267886,229.62,229.55,6.45267886]
[1732685687619,2.1786,229.59,229.55,6.45267886]
[1732685688118,2.1786,229.58,229.55,6.45267886]
[1732685689114,2.1786,229.58,229.54,2.1789]
[1732685689317,2.24,229.59,229.51,3.765]
[1732685689619,2.1788,229.56,229.51,8.92537886]
[1732685690319,2.1788,229.56,229.52,2.1792]
[1732685692023,2.24,229.57,229.53,6.45267886]
[1732685692226,4.4187,229.57,229.53,8.63177886]
[1732685694523,4.4187,229.57,229.53,2.1791]
[1732685695920,2.1788,229.56,229.53,2.1791]
[1732685696123,2.1788,229.56,229.52,8.63187886]
[1732685696422,2.1788,229.56,229.54,6.45267886]
[1732685697822,2.1788,229.56,229.52,8.63187886]
[1732685698625,2.1788,229.56,229.52,2.1792]
[1732685698824,2.1788,229.56,229.52,8.63187886]
[1732685700921,0.23956,229.69,229.54,6.45267886]
[1732685700922,0.3094,229.68,229.54,6.45267886]
[1732685701128,0.23956,229.69,229.58,6.45267886]
[1732685701129,2.24,229.67,229.58,6.45267886]
[1732685701328,16.66855971,229.66,229.58,6.45267886]
[1732685701625,2.1782,229.63,229.58,8.63127886]
[1732685701827,6.45267886,229.64,229.56,6.45267886]
[1732685702018,2.24,229.67,229.55,2.1789]
[1732685702019,2.1784,229.6,229.55,2.1789]
[1732685702424,2.1784,229.6,229.56,6.45267886]
[1732685703219,2.24,229.62,229.58,6.45267886]
[1732685703425,2.24,229.65,229.6,6.45267886]
[1732685703925,0.23956,229.69,229.6,6.45267886]
[1732685704126,0.23956,229.69,229.61,6.45267886]
[1732685704127,8.69267886,229.68,229.61,6.45267886]
[1732685704522,2.24,229.68,229.61,6.45267886]
[1732685705223,8.69267886,229.68,229.61,6.45267886]
[1732685705526,2.1779,229.66,229.61,8.63097886]
[1732685705926,2.24,229.68,229.63,6.45267886]
[1732685706927,0.23956,229.69,229.65,6.45267886]
[1732685707121,6.45267886,229.74,229.67,6.45267886]
[1732685707931,2.1772,229.73,229.68,2.1776]
[1732685708820,2.1772,229.73,229.69,6.45267886]
[1732685709028,4.4171,229.75,229.69,8.63017886]
[1732685709730,2.1771,229.74,229.69,8.63017886]
[1732685711822,2.177,229.75,229.7,2.1774]
[1732685712223,2.24,229.79,229.74,6.45267886]
[1732685712423,1.338,229.85,229.74,2.1771]
[1732685712424,2.24,229.81,229.74,2.1771]
[1732685712629,6.45267886,229.77,229.7,6.45267886]
[1732685713031,6.45267886,229.77,229.71,1.3176]
[1732685713229,8.62957886,229.77,229.72,2.1773]
[1732685713534,6.45267886,229.77,229.71,1.3176]
[1732685713728,2.24,229.81,229.71,1.3176]
[1732685713729,2.1772,229.73,229.71,1.3176]
[1732685717025,2.1775,229.7,229.65,2.1779]
[1732685717227,6.45267886,229.7,229.64,2.661]
[1732685717833,2.1777,229.68,229.64,2.661]
[1732685718230,6.45267886,229.7,229.64,4.839]
[1732685718231,8.63027886,229.7,229.64,4.839]
[1732685718732,6.45267886,229.7,229.64,4.839]
[1732685720332,2.1776,229.69,229.64,4.839]
[1732685720726,2.1776,229.69,229.65,2.1779]
[1732685725936,2.24,229.71,229.64,9.11367886]
[1732685725937,6.45267886,229.75,229.68,6.45267886]
[1732685726236,6.45267886,229.77,229.68,6.45267886]
[1732685726435,2.24,229.76,229.68,6.45267886]
[1732685726633,2.24,229.76,229.71,6.45267886]
[1732685727947,2.24,229.76,229.7,2.1774]
[1732685728335,2.177,229.75,229.7,2.1774]
[1732685729643,2.1771,229.74,229.69,8.63027886]
[1732685730732,2.177,229.75,229.7,2.1774]
[1732685734844,2.177,229.75,229.71,6.45267886]
[1732685736646,2.177,229.75,229.71,8.62997886]
[1732685736848,2.24,229.76,229.64,2.661]
[1732685737044,2.1771,229.74,229.71,6.45267886]
[1732685739349,2.1771,229.74,229.71,8.63007886]
[1732685740943,2.1771,229.74,229.71,6.45267886]
[1732685742846,2.24,229.76,229.71,6.45267886]
[1732685743050,2.1768,229.77,229.75,6.45267886]
[1732685745747,2.1768,229.77,229.73,8.62977886]
[1732685749252,1.338,229.85,229.75,6.45267886]
[1732685749455,1.338,229.85,229.79,6.45267886]
[1732685749653,1.338,229.85,229.64,2.661]
[1732685749654,2.24,229.86,229.81,6.45267886]
[1732685749861,2.1762,229.84,229.81,6.45267886]
[1732685750363,2.1763,229.83,229.79,6.45267886]
[1732685750862,2.24,229.86,229.79,6.45267886]
[1732685751160,18.79974868,229.85,229.81,2.1764]
[1732685751363,2.24,229.86,229.81,6.45267886]
[1732685751656,0.19812,229.88,229.83,6.45267886]
[1732685751860,0.19812,229.88,229.85,6.45267886]
[1732685754957,6.65079886,229.88,229.78,2.24]
[1732685755153,6.45267886,229.86,229.77,2.1767]
[1732685755359,8.69267886,229.86,229.78,6.45267886]
[1732685755761,8.69267886,229.86,229.75,2.24]
[1732685755762,2.1761,229.84,229.8,6.45267886]
[1732685755955,2.24,229.86,229.8,6.45267886]
[1732685756161,2.1761,229.85,229.8,8.62917886]
[1732685758161,2.37392,229.88,229.84,8.62877886]
[1732685758555,2.37392,229.88,229.75,2.24]
[1732685758556,6.45267886,229.87,229.75,2.24]
[1732685758758,6.45267886,229.87,229.81,6.45267886]
[1732685759256,2.176,229.85,229.81,8.62907886]
[1732685759464,0.19812,229.88,229.81,8.62907886]
[1732685760261,6.45267886,229.87,229.81,8.62907886]
[1732685760457,6.45267886,229.87,229.75,2.24]
[1732685760458,6.45267886,229.87,229.79,6.45267886]
[1732685760854,0.19812,229.88,229.72,2.6063]
[1732685760855,6.45267886,229.81,229.72,2.6063]
[1732685761159,2.1765,229.8,229.74,6.45267886]
[1732685761464,6.45267886,229.83,229.76,6.45267886]
[1732685761763,2.1763,229.82,229.78,2.1767]
[1732685763555,2.1763,229.82,229.76,6.45267886]
[1732685763762,6.45267886,229.82,229.72,2.6063]
[1732685764055,2.24,229.84,229.72,9.05897886]
[1732685764056,6.45267886,229.8,229.72,9.05897886]
[1732685764257,2.24,229.84,229.72,2.6063]
[1732685764258,2.1771,229.75,229.72,2.6063]
[1732685764660,6.45267886,229.78,229.72,2.6063]
[1732685765157,6.45267886,229.78,229.72,9.05897886]
[1732685765363,2.1769,229.77,229.72,9.05897886]
[1732685765759,2.24,229.79,229.72,9.05897886]
[1732685766269,4.4167,229.79,229.74,6.45267886]
[1732685766463,2.24,229.79,229.74,6.45267886]
[1732685766864,2.24,229.79,229.76,6.45267886]
[1732685767166,2.24,229.82,229.76,6.45267886]
[1732685768167,2.1766,229.79,229.76,6.45267886]
[1732685768760,2.1765,229.81,229.76,8.62957886]
[1732685769062,2.22,229.86,229.8,6.45267886]
[1732685769360,6.45267886,229.88,229.8,6.45267886]
[1732685770466,23.31531382,229.94,229.82,6.45267886]
[1732685770665,10.80005664,229.93,229.82,6.45267886]
[1732685770867,6.45267886,229.9,229.82,6.45267886]
[1732685771265,2.22,229.93,229.82,8.62897886]
[1732685771266,2.1759,229.87,229.82,8.62897886]
[1732685772061,2.1757,229.9,229.84,8.62877886]
[1732685772272,8.67267886,229.91,229.84,8.62877886]
[1732685772466,8.67267886,229.91,229.8,1.235]
[1732685772767,2.1759,229.88,229.83,6.45267886]
[1732685773161,2.1757,229.9,229.86,2.1759]
[1732685773465,23.31531382,229.94,229.87,6.45267886]
[1732685773466,24.22111382,229.94,229.87,6.45267886]
[1732685773670,2.1754,229.93,229.88,2.1757]
[1732685774364,2.1754,229.93,229.89,6.45267886]
[1732685774865,22.00111382,229.94,229.84,2.22]
[1732685775070,6.45267886,229.93,229.86,6.45267886]
[1732685775468,0.24932,229.95,229.86,6.45267886]
[1732685775666,0.24932,229.95,229.9,2.1756]
[1732685775965,0.24932,229.95,229.84,2.22]
[1732685776173,8.87719886,229.95,229.89,2.1757]
[1732685776377,0.24932,229.95,229.9,6.45267886]
[1732685776680,2.1752,229.94,229.9,6.45267886]
[1732685776872,0.24932,229.95,229.9,6.45267886]
[1732685777270,0.24932,229.95,229.91,2.1755]
[1732685777572,0.24932,229.95,229.92,6.45267886]
[1732685778671,0.24932,229.95,229.89,2.559]
[1732685778672,6.45267886,229.93,229.89,2.559]
[1732685778870,6.45267886,229.91,229.83,6.45267886]
[1732685779270,0.24932,229.95,229.89,6.45267886]
[1732685779476,0.24932,229.95,229.91,6.45267886]
[1732685779970,2.1753,229.94,229.91,6.45267886]
[1732685780967,0.24932,229.95,229.91,6.45267886]
[1732685781569,0.24932,229.95,229.93,6.45267886]
[1732685781763,0.24932,229.95,229.92,2.5865]
[1732685781964,2.1753,229.93,229.92,2.5865]
[1732685782673,6.45267886,229.93,229.8,1.235]
[1732685782870,0.24932,229.95,229.9,6.45267886]
[1732685783372,2.1755,229.91,229.9,6.45267886]
[1732685783570,2.1755,229.91,229.87,2.22]
[1732685783571,0.24932,229.95,229.88,6.45267886]
[1732685783969,2.1753,229.93,229.88,6.45267886]
[1732685784268,0.24932,229.95,229.9,8.62827886]
[1732685785077,0.24932,229.95,229.92,6.45267886]
[1732685785273,2.42452,229.95,229.92,6.45267886]
[1732685785474,0.24932,229.95,229.94,6.45267886]
[1732685786174,2.1749,229.97,229.94,6.45267886]
[1732685786372,6.45267886,230.01,229.92,7.77967886]
[1732685786867,2.1751,229.96,229.92,7.77967886]
[1732685787385,2.1749,229.97,229.92,9.95507886]
[1732685787773,6.45267886,230.0,229.92,9.95507886]
[1732685788770,2.175,229.96,229.92,7.77967886]
[1732685789675,2.1749,229.97,229.92,9.95507886]
[1732685790979,2.1749,229.97,229.94,6.45267886]
[1732685791179,2.1748,229.99,229.94,6.45267886]
[1732685791484,6.45267886,230.02,229.94,6.45267886]
[1732685792174,2.1748,229.98,229.94,8.62787886]
[1732685792780,2.22,230.03,229.96,8.62767886]
[1732685792781,2.1747,230.0,229.96,8.62767886]
[1732685792977,2.22,230.03,229.98,6.45267886]
[1732685793979,2.1747,230.0,229.96,6.45267886]
[1732685794180,6.45267886,230.02,229.92,2.5799]
[1732685794376,6.45267886,230.0,229.92,1.327]
[1732685794683,2.175,229.96,229.92,7.77967886]
[1732685794885,6.45267886,230.0,229.92,7.77967886]
[1732685795080,2.175,229.97,229.94,6.45267886]
[1732685795881,2.175,229.96,229.94,6.45267886]
[1732685799890,2.1747,229.99,229.94,8.62777886]
[1732685800294,6.45267886,230.02,229.94,8.62777886]
[1732685801394,2.1748,229.98,229.94,8.62777886]
[1732685801690,6.45267886,230.02,229.94,6.45267886]
[1732685802687,6.45267886,230.02,229.94,8.62787886]
[1732685803289,6.45267886,230.02,229.95,2.1751]
[1732685803488,2.22,230.03,229.96,6.45267886]
[1732685803795,2.1745,230.02,229.96,6.45267886]
[1732685803994,8.67267886,230.04,229.96,6.45267886]
[1732685804188,6.45267886,230.04,229.96,6.45267886]
[1732685804589,2.1746,230.01,229.96,8.62767886]
[1732685806001,6.45267886,230.04,229.96,8.62767886]
[1732685806201,6.45267886,230.04,229.96,6.45267886]
[1732685806400,6.45267886,230.04,229.98,6.45267886]
[1732685806603,2.1743,230.03,229.98,6.45267886]
[1732685807197,2.1743,230.03,230.0,6.45267886]
[1732685808705,2.1744,230.02,230.0,6.45267886]
[1732685812197,6.45267886,230.06,229.98,6.45267886]
[1732685812403,6.45267886,230.02,229.93,2.22]
[1732685812708,6.45267886,230.02,229.94,6.45267886]
[1732685813008,2.1749,229.97,229.94,8.62787886]
[1732685813803,6.45267886,230.04,229.96,6.45267886]
[1732685814003,2.37603,230.08,229.98,6.45267886]
[1732685814305,6.45267886,230.06,229.98,6.45267886]
[1732685814506,2.1744,230.02,229.98,6.45267886]
[1732685815407,2.1744,230.02,229.98,8.62747886]
[1732685816607,2.1744,230.02,229.98,6.45267886]
[1732685818106,2.1744,230.02,230.0,6.45267886]
[1732685818704,0.15603,230.08,230.0,6.45267886]
[1732685818906,0.15603,230.08,230.07,6.45267886]
[1732685819406,9.81143475,230.15,230.07,6.45267886]
[1732685819609,20.01080229,230.15,230.07,6.45267886]
[1732685819810,6.45267886,230.12,230.05,6.45267886]
[1732685820010,2.1741,230.06,230.05,6.45267886]
[1732685820206,8.67267886,230.1,229.92,1.2563]
[1732685820412,6.45267886,230.08,229.93,1.2181]
[1732685820609,2.1744,230.03,229.99,6.45267886]
[1732685821212,2.1743,230.04,230.01,6.45267886]
[1732685822503,2.42552,230.14,230.03,6.45267886]
[1732685822704,2.42552,230.14,230.05,6.45267886]
[1732685822705,25.24432864,230.13,230.05,6.45267886]
[1732685823017,18.79164978,230.12,230.05,6.45267886]
[1732685823220,18.79164978,230.11,230.05,6.45267886]
[1732685823512,6.45267886,230.13,230.05,6.45267886]
[1732685823719,8.59108936,230.12,230.05,6.45267886]
[1732685823911,8.59108936,230.12,230.07,6.45267886]
[1732685823912,2.1739,230.08,230.07,6.45267886]
[1732685830122,2.42552,230.14,230.07,6.45267886]
[1732685830315,18.79261148,230.13,230.11,6.45267886]
[1732685830622,2.42552,230.14,230.11,6.45267886]
[1732685830919,2.1734,230.13,230.11,6.45267886]
[1732685831312,0.20552,230.14,230.11,6.45267886]
[1732685832219,2.37882,230.14,230.13,6.45267886]
[1732685833429,0.20552,230.14,230.13,6.45267886]
[1732685834818,2.37882,230.14,230.13,6.45267886]
[1732685836026,2.37882,230.14,230.04,1.3286]
[1732685836027,0.20552,230.14,230.04,1.3286]
[1732685836224,2.1736,230.12,230.1,6.45267886]
[1732685836620,0.20552,230.14,230.1,6.45267886]
[1732685836925,0.20552,230.14,230.13,6.45267886]
[1732685838128,2.37882,230.14,230.13,6.45267886]
[1732685839621,0.20552,230.14,230.13,6.45267886]
[1732685840729,2.1731,230.17,230.13,6.45267886]
[1732685841133,2.1731,230.17,230.15,6.45267886]
[1732685844831,2.1731,230.16,230.15,6.45267886]
[1732685845226,6.45267886,230.2,230.09,1.2381]
[1732685845427,2.1734,230.13,230.1,6.45267886]
[1732685845633,2.22,230.19,230.12,6.45267886]
[1732685846535,2.1733,230.15,230.12,6.45267886]
[1732685846830,6.45267886,230.18,230.1,6.45267886]
[1732685847231,2.1732,230.16,230.1,6.45267886]
[1732685847432,6.45267886,230.16,230.04,1.3286]
[1732685847626,2.22,230.19,230.07,6.45267886]
[1732685847627,6.45267886,230.14,230.07,6.45267886]
[1732685847831,6.45267886,230.12,230.04,1.3286]
[1732685848030,8.67267886,230.12,230.04,6.45267886]
[1732685848728,8.58588317,230.11,230.04,6.45267886]
[1732685848932,8.67267886,230.12,230.04,6.45267886]
[1732685849336,2.22,230.2,230.11,6.45267886]
[1732685849538,2.1734,230.13,230.11,6.45267886]
[1732685849739,6.45267886,230.19,230.05,2.22]
[1732685849939,2.1737,230.11,230.08,6.45267886]
[1732685850238,6.45267886,230.17,230.08,6.45267886]
[1732685850239,2.22,230.15,230.08,6.45267886]
[1732685850434,8.58897723,230.14,230.05,2.22]
[1732685850731,2.1736,230.12,230.08,6.45267886]
[1732685851134,2.1736,230.12,230.1,6.45267886]
[1732685851628,2.22,230.15,230.06,2.174]
[1732685851828,2.22,230.15,230.08,6.45267886]
[1732685852230,6.45267886,230.12,230.04,6.45267886]
[1732685852540,1.3313,230.14,230.04,6.45267886]
[1732685852734,2.1738,230.09,230.06,6.45267886]
[1732685852938,1.3313,230.14,230.06,6.45267886]
[1732685853133,1.3313,230.14,230.08,6.45267886]
[1732685853437,1.3313,230.14,230.06,6.45267886]
[1732685853834,2.1737,230.1,230.06,6.45267886]
[1732685855740,6.45267886,230.12,230.04,6.45267886]
[1732685856538,6.45267886,230.12,229.98,2.22]
[1732685856539,6.45267886,230.1,229.98,2.22]
[1732685856742,2.1741,230.06,230.03,6.45267886]
[1732685857239,2.174,230.08,230.05,6.45267886]
[1732685857642,2.22,230.09,230.05,6.45267886]
[1732685859344,2.174,230.07,230.05,6.45267886]
[1732685859843,2.22,230.09,230.05,6.45267886]
[1732685860045,2.22,230.09,229.98,2.1747]
[1732685860338,2.22,230.09,229.96,2.6229]
[1732685860339,2.1743,230.04,230.01,6.45267886]
[1732685860746,2.22,230.04,230.01,6.45267886]
[1732685860935,6.45267886,230.03,229.76,24.23440028]
[1732685861138,6.45267886,230.0,229.83,2.5742]
[1732685861340,13.08,230.12,229.92,8.62807886]
[1732685861341,2.1749,229.98,229.92,8.62807886]
[1732685861546,2.22,229.97,229.94,6.45267886]
[1732685861746,1.2915,230.03,229.96,6.45267886]
[1732685861952,2.22,230.02,229.99,6.45267886]
[1732685862142,6.45267886,230.08,230.01,6.45267886]
[1732685862339,8.5902045,230.07,230.03,6.45267886]
[1732685862649,4.3941,230.06,230.03,6.45267886]
[1732685862948,2.22,230.05,230.03,6.45267886]
[1732685864345,2.22,230.05,230.02,2.1744]
[1732685864546,2.174,230.07,230.02,2.1744]
[1732685864743,2.22,230.06,230.02,2.1744]
[1732685865549,2.22,230.06,230.0,10.89461149]
[1732685866148,2.22,230.06,230.02,2.1744]
[1732685866746,2.22,230.06,230.0,10.89461149]
[1732685868354,2.22,230.06,230.02,2.1744]
[1732685868950,25.28167953,230.18,230.03,10.89461149]
[1732685869148,10.82025245,230.17,230.03,10.89461149]
[1732685869350,2.1737,230.1,230.04,2.1742]
[1732685869648,2.22,230.1,230.04,2.1742]
[1732685870351,2.1738,230.09,230.04,2.1742]
[1732685870747,2.22,230.1,230.05,2.1741]
[1732685871051,26.57707953,230.18,230.03,10.89461149]
[1732685871052,2.1734,230.14,230.03,10.89461149]
[1732685871353,2.22,230.13,230.08,2.1738]
[1732685871550,2.22,230.12,230.08,2.1738]
[1732685872247,2.22,230.12,230.09,2.1738]
[1732685872949,14.38706804,230.18,230.06,10.89461149]
[1732685873154,2.1731,230.16,230.11,2.1735]
[1732685873649,2.1731,230.16,230.09,10.89461149]
[1732685873650,4.393,230.18,230.09,10.89461149]
[1732685873855,2.22,230.18,230.09,10.89461149]
[1732685874546,4.393,230.18,230.13,2.1733]
[1732685876850,2.1732,230.16,230.11,2.1735]
[1732685879156,2.22,230.18,230.09,10.89461149]
[1732685879464,2.22,230.18,230.06,10.89461149]
[1732685880458,2.1731,230.16,230.06,10.89461149]
[1732685881255,2.173,230.17,230.12,2.1735]
[1732685883364,4.3929,230.18,230.13,2.1734]
[1732685883563,2.22,230.18,230.13,2.1734]
[1732685885263,2.173,230.17,230.13,2.1734]
[1732685886560,0.24597,230.21,230.08,2.22]
[1732685886760,2.1727,230.2,230.16,6.96713797]
[1732685887169,2.1728,230.19,230.16,6.96713797]
[1732685887466,2.1728,230.19,230.15,2.1732]
[1732685890564,2.1728,230.19,230.14,6.96713797]
[1732685891060,2.173,230.18,230.11,2.1735]
[1732685891266,2.173,230.18,230.13,6.96713797]
[1732685893167,2.173,230.18,230.13,9.14043797]
[1732685894766,2.173,230.18,230.14,2.1733]
[1732685895670,2.173,230.18,230.13,6.96713797]
[1732685895871,6.96713797,230.19,230.08,2.22]
[1732685896067,6.96713797,230.19,230.11,6.96713797]
[1732685896367,2.2,230.21,230.13,6.96713797]
[1732685896368,9.16713797,230.21,230.13,6.96713797]
[1732685896568,2.1729,230.18,230.13,6.96713797]
[1732685896778,6.96713797,230.19,230.11,6.96713797]
[1732685897074,9.16713797,230.21,230.14,2.1733]
[1732685897479,2.2,230.21,230.15,6.96713797]
[1732685897774,2.2,230.21,230.15,9.14033797]
[1732685898277,2.1728,230.2,230.15,9.14033797]
[1732685898477,2.2,230.21,230.15,9.14033797]
[1732685898676,4.3727,230.21,230.16,2.1731]
[1732685899272,2.1727,230.2,230.16,2.1731]
[1732685899469,2.1727,230.2,230.15,9.14033797]
[1732685902369,2.2,230.21,230.15,6.96713797]
[1732685902576,2.1729,230.18,230.15,6.96713797]
[1732685905081,2.1731,230.17,230.13,6.96713797]
[1732685905583,2.1731,230.17,230.13,9.14053797]
[1732685908182,2.2,230.21,230.13,9.14053797]
[1732685909284,2.1729,230.18,230.13,9.14053797]
[1732685910486,2.1729,230.18,230.14,2.1733]
[1732685912292,2.1729,230.18,230.09,1.2398]
[1732685912483,2.1729,230.18,230.13,2.1734]
[1732685914489,2.1729,230.18,230.12,6.96713797]
[1732685914490,6.96713797,230.2,230.12,6.96713797]
[1732685914685,8.64197304,230.19,230.12,6.96713797]
[1732685915090,2.1732,230.16,230.12,6.96713797]
[1732685915285,2.1732,230.16,230.12,9.14063797]
[1732685916197,2.1732,230.16,230.12,6.96713797]
[1732685916386,2.1732,230.15,230.11,2.1736]
[1732685916591,2.1732,230.15,230.11,9.14073797]
[1732685916998,2.1731,230.16,230.12,2.1735]
[1732685917300,9.16713797,230.21,230.11,6.96713797]
[1732685917489,8.65046372,230.2,230.11,6.96713797]
[1732685917692,6.96713797,230.18,230.08,2.22]
[1732685917891,6.96713797,230.18,230.1,6.96713797]
[1732685918092,8.6503153,230.17,230.1,6.96713797]
[1732685918299,2.1732,230.15,230.11,2.1736]
[1732685918491,2.1732,230.15,230.1,6.96713797]
[1732685918991,2.1732,230.15,230.1,9.14073797]
[1732685919388,2.1732,230.15,230.1,6.96713797]
[1732685919795,6.96713797,230.2,230.1,6.96713797]
[1732685919998,8.65100623,230.19,230.1,9.14073797]
[1732685921101,6.96713797,230.18,230.1,9.14073797]
[1732685921299,2.1733,230.15,230.1,9.14073797]
[1732685921596,9.16713797,230.16,230.07,6.96713797]
[1732685921795,10.84895943,230.15,230.07,6.96713797]
[1732685921995,2.1736,230.12,230.08,2.1739]
[1732685922193,2.1736,230.12,230.07,6.96713797]
[1732685922595,2.1736,230.12,230.07,2.1739]
[1732685922898,2.1736,230.12,230.07,9.14103797]
[1732685925103,2.2,230.15,230.07,9.14103797]
[1732685925293,2.1736,230.11,230.07,9.14103797]
[1732685925500,6.96713797,230.14,230.07,6.96713797]
[1732685925699,8.64555982,230.13,230.07,6.96713797]
[1732685927405,2.1738,230.1,230.07,6.96713797]
[1732685930601,3.4336,230.15,230.07,6.96713797]
[1732685930802,2.1735,230.12,230.09,6.96713797]
[1732685932101,2.2,230.14,230.08,6.96713797]
[1732685932303,2.1736,230.11,230.08,6.96713797]
[1732685932507,9.16713797,230.14,230.04,23.41178258]
[1732685932809,2.1739,230.08,230.06,6.96713797]
[1732685933009,9.16713797,230.14,230.06,6.96713797]
[1732685933407,2.1738,230.1,230.06,6.96713797]
[1732685934508,2.1738,230.09,230.06,6.96713797]
[1732685934710,2.1738,230.09,230.06,9.14123797]
[1732685935101,2.1738,230.09,230.06,6.96713797]
[1732685940914,1.2336,230.15,230.08,6.96713797]
[1732685941115,1.2336,230.15,230.1,6.96713797]
[1732685941314,2.2,230.15,230.1,6.96713797]
[1732685941510,4.3733,230.15,230.1,9.14083797]
[1732685941816,2.2,230.15,230.1,9.14083797]
[1732685942219,2.2,230.15,230.12,6.96713797]
[1732685943815,2.2,230.16,230.12,6.96713797]
[1732685944010,2.1733,230.14,230.1,6.96713797]
[1732685945220,2.1733,230.14,230.1,9.14073797]
[1732685945814,2.2,230.16,230.1,9.14073797]
[1732685946410,2.2,230.16,230.1,6.96713797]
[1732685946609,2.2,230.16,230.12,6.96713797]
[1732685947016,2.173,230.18,230.12,6.96713797]
[1732685947017,2.2,230.18,230.12,6.96713797]
[1732685947218,2.2,230.18,230.14,6.96713797]
[1732685947512,1.2245,230.21,230.16,6.96713797]
[1732685947513,3.4245,230.21,230.16,6.96713797]
[1732685947721,8.6330734,230.2,230.16,6.96713797]
[1732685948322,10.8330734,230.2,230.16,6.96713797]
[1732685948618,2.2,230.2,230.16,6.96713797]
[1732685949029,2.173,230.18,230.13,2.1733]
[1732685949327,2.2,230.2,230.13,6.96713797]
[1732685950629,2.1732,230.16,230.13,6.96713797]
[1732685951822,1.2245,230.21,230.13,6.96713797]
[1732685952028,2.2,230.2,230.17,6.96713797]
[1732685952325,0.23693,230.22,230.09,2.2]
[1732685952525,21.07152491,230.22,230.15,6.96713797]
[1732685952724,6.96713797,230.19,230.06,1.2858]
[1732685952918,2.1732,230.15,230.1,6.96713797]
[1732685953122,9.16713797,230.17,230.1,6.96713797]
[1732685953322,8.63492467,230.16,230.1,6.96713797]
[1732685953721,2.1733,230.14,230.1,9.14083797]
[1732685953917,9.16713797,230.17,230.1,9.14083797]
[1732685954122,8.63531413,230.16,230.1,9.14083797]
[1732685955227,2.1732,230.15,230.1,9.14083797]
[1732685955621,2.1732,230.15,230.11,2.1736]
[1732685955825,2.2,230.17,230.1,6.96713797]
[1732685956029,2.2,230.17,230.12,6.96713797]
[1732685956427,2.2,230.17,230.13,2.1734]
[1732685956626,2.2,230.18,230.13,2.1734]
[1732685956828,8.63772262,230.17,230.13,2.1734]
[1732685957124,2.2,230.18,230.13,2.1734]
[1732685958429,2.1729,230.19,230.12,6.96713797]
[1732685958633,8.63876676,230.18,230.14,2.1733]
[1732685958834,2.2,230.2,230.14,2.1733]
[1732685959130,8.63872982,230.19,230.14,2.1733]
[1732685960124,2.2,230.2,230.14,2.1733]
[1732685960323,2.1729,230.18,230.14,2.1733]
[1732685960931,2.1729,230.18,230.06,1.2858]
[1732685961227,2.1731,230.17,230.12,2.1734]
[1732685962429,2.1731,230.17,230.13,2.1734]
[1732685966626,2.1732,230.16,230.1,2.1736]
[1732685966826,6.96713797,230.17,230.08,6.96713797]
[1732685967034,6.96713797,230.15,230.08,6.96713797]